[Event "44th Chess Olympiad Women 2022"]
[Site "Chennai"]
[Date "2022.08.07"]
[Round "9.26"]
[White "Castrillon Gomez, Melissa"]
[Black "Verbin, Valentina"]
[Result "1-0"]
[WhiteElo "2230"]
[BlackElo "2069"]
[Annotator "RC"]
[PlyCount "117"]
[EventDate "2022.??.??"]
[TimeControl "60"]

1. d4 {[%emt 0:00:05]} Nf6 {[%emt 0:00:11]} 2. c4 {[%emt 0:00:06]} e6 {[%emt 0:
00:00]} 3. g3 {[%emt 0:00:05]} d5 {[%emt 0:01:02]} 4. Bg2 {[%emt 0:00:11]} Bb4+
{[%emt 0:00:13]} 5. Bd2 {[%emt 0:00:30]} Be7 {[%emt 0:00:21]} 6. Nf3 {[%emt 0:
00:00]} O-O {[%emt 0:00:14]} 7. O-O {[%emt 0:00:11]} Nbd7 {[%emt 0:00:47]} 8.
Bf4 {[%emt 0:00:31]} c6 {[%emt 0:01:11]} 9. Nc3 {[%emt 0:00:44]} b6 {[%emt 0:
00:00]} 10. Rc1 {[%emt 0:05:24]} Ba6 {[%emt 0:14:46]} 11. cxd5 {[%emt 0:03:43]}
cxd5 {[%emt 0:00:33]} 12. Qa4 {[%emt 0:03:50]} Bb7 {[%emt 0:06:28]} 13. Nb5 {
[%emt 0:04:14]} a6 {[%emt 0:00:15]} 14. Nd6 {[%emt 0:04:29]} Bxd6 {[%emt 0:00:
00]} 15. Bxd6 {[%emt 0:00:12]} Re8 {[%emt 0:01:05]} 16. Rc7 {[%emt 0:05:49]}
Nb8 {[%emt 0:12:03]} 17. Be5 {[%emt 0:07:58]} Bc8 {[%emt 0:11:12]} 18. Qc2 {
[%emt 0:11:36]} Bd7 {[%emt 0:04:34]} 19. Ng5 {[%emt 0:02:16]} h6 {[%emt 0:00:
00]} 20. Bxf6 {[%emt 0:07:49]} Qxf6 {[%emt 0:00:19]} 21. Qh7+ {[%emt 0:01:14]}
Kf8 {[%emt 0:00:05]} 22. Ne4 {[%emt 0:01:49]} Qg6 {[%emt 0:13:19]} 23. Qxg6 {
[%emt 0:00:55]} fxg6 {[%emt 0:00:04]} 24. Nd6 {[%emt 0:00:38]} Rd8 {[%emt 0:00:
00]} 25. Rfc1 {[%emt 0:02:13]} a5 {[%emt 0:06:19]} 26. e4 {[%emt 0:04:26]} Na6
{[%emt 0:01:02]} 27. Rb7 {[%emt 0:04:23]} Ke7 {[%emt 0:02:08]} 28. exd5 {
[%emt 0:03:28]} exd5 {[%emt 0:02:10]} 29. Rxb6 {[%emt 0:00:58]} Rdb8 {[%emt 0:
00:00]} 30. Re1+ {[%emt 0:01:44]} Kf8 {[%emt 0:01:08]} 31. Nb7 {[%emt 0:07:12]}
Nb4 {[%emt 0:00:22]} 32. Nc5 {[%emt 0:01:13]} Bf5 {[%emt 0:00:31]} 33. Rxb8+ {
[%emt 0:03:14]} Rxb8 {[%emt 0:00:03]} 34. Re5 {[%emt 0:00:37]} Re8 {[%emt 0:00:
00]} 35. a3 {[%emt 0:02:24]} Nc2 {[%emt 0:00:15]} 36. Rxe8+ {[%emt 0:01:01]}
Kxe8 {[%emt 0:00:03]} 37. Bxd5 {[%emt 0:02:37]} Nxd4 {[%emt 0:00:07]} 38. f4 {
[%emt 0:04:59]} Ke7 {[%emt 0:01:18]} 39. Bc4 {[%emt 0:00:49]} Nf3+ {[%emt 0:00:
00]} 40. Kf2 {[%emt 0:01:48]} Nd2 {[%emt 0:00:04]} 41. Be2 {[%emt 0:32:05]}
Ne4+ {[%emt 0:12:59]} 42. Nxe4 {[%emt 0:00:00]} Bxe4 {[%emt 0:00:04]} 43. Ke3 {
[%emt 0:00:00]} Bb7 {[%emt 0:00:34]} 44. Kd4 {[%emt 0:00:00]} Kd6 {[%emt 0:00:
00]} 45. Bd3 {[%emt 0:00:00]} g5 {[%emt 0:00:10]} 46. fxg5 {[%emt 0:00:00]}
hxg5 {[%emt 0:00:04]} 47. b4 {[%emt 0:00:00]} axb4 {[%emt 0:00:20]} 48. axb4 {
[%emt 0:00:00]} Bc8 {[%emt 0:02:42]} 49. b5 {[%emt 0:00:00]} Bb7 {[%emt 0:00:
00]} 50. Be4 {[%emt 0:00:00]} Bc8 {[%emt 0:00:14]} 51. b6 {[%emt 0:00:00]} Ba6
{[%emt 0:00:06]} 52. b7 {[%emt 0:00:00]} Kc7 {[%emt 0:01:03]} 53. Ke5 {[%emt 0:
00:00]} Be2 {[%emt 0:00:42]} 54. Kf5 {[%emt 0:00:00]} g4 {[%emt 0:00:05]} 55.
Kg5 {[%emt 0:00:00]} Bf3 {[%emt 0:01:51]} 56. Bf5 {[%emt 0:00:00]} Bxb7 {
[%emt 0:02:20]} 57. Bxg4 {[%emt 0:00:00]} Be4 {[%emt 0:00:50]} 58. Bf5 {
[%emt 0:00:00]} Bd5 {[%emt 0:01:12]} 59. Kg6 {[%emt 0:00:00]} 1-0

[Event "44th Chess Olympiad Women 2022"]
[Site "Chennai"]
[Date "2022.08.07"]
[Round "9.26"]
[White "Gitu, Paula-Alexandra"]
[Black "Chirivi C, Jenny Astrid"]
[Result "1/2-1/2"]
[WhiteElo "2109"]
[BlackElo "2157"]
[Annotator "RC"]
[PlyCount "99"]
[EventDate "2022.??.??"]
[TimeControl "60"]

1. e4 {[%emt 0:00:03]} c5 {[%emt 0:00:10]} 2. Nf3 {[%emt 0:00:05]} e6 {[%emt 0:
00:00]} 3. g3 {[%emt 0:00:06]} d5 {[%emt 0:03:09]} 4. exd5 {[%emt 0:00:07]}
Qxd5 {[%emt 0:03:13]} 5. Nc3 {[%emt 0:00:43]} Qd8 {[%emt 0:03:17]} 6. d4 {
[%emt 0:00:31]} Nf6 {[%emt 0:04:09]} 7. Bg2 {[%emt 0:01:01]} Be7 {[%emt 0:00:
00]} 8. Bg5 {[%emt 0:06:48]} cxd4 {[%emt 0:02:43]} 9. Nxd4 {[%emt 0:05:42]} O-O
{[%emt 0:06:47]} 10. O-O {[%emt 0:02:44]} e5 {[%emt 0:15:58]} 11. Ndb5 {
[%emt 0:17:47]} Nc6 {[%emt 0:02:31]} 12. Qxd8 {[%emt 0:20:54]} Rxd8 {[%emt 0:
00:00]} 13. Rfe1 {[%emt 0:13:51]} h6 {[%emt 0:04:21]} 14. Bxf6 {[%emt 0:08:22]}
Bxf6 {[%emt 0:02:10]} 15. Nd5 {[%emt 0:02:30]} Bf5 {[%emt 0:05:15]} 16. c3 {
[%emt 0:00:49]} Rd7 {[%emt 0:06:00]} 17. Rad1 {[%emt 0:08:52]} Rad8 {[%emt 0:
00:00]} 18. h3 {[%emt 0:00:39]} Kf8 {[%emt 0:03:24]} 19. g4 {[%emt 0:00:31]}
Bg6 {[%emt 0:01:15]} 20. Ne3 {[%emt 0:00:45]} Bd3 {[%emt 0:05:22]} 21. Na3 {
[%emt 0:00:26]} e4 {[%emt 0:03:09]} 22. Nf5 {[%emt 0:01:34]} Ne5 {[%emt 0:00:
00]} 23. Ng3 {[%emt 0:01:11]} Nf3+ {[%emt 0:01:07]} 24. Bxf3 {[%emt 0:00:03]}
exf3 {[%emt 0:00:05]} 25. Re3 {[%emt 0:00:17]} Be7 {[%emt 0:03:06]} 26. Rxf3 {
[%emt 0:01:11]} Bxa3 {[%emt 0:00:26]} 27. bxa3 {[%emt 0:00:01]} Bc4 {[%emt 0:
00:00]} 28. Rxd7 {[%emt 0:03:12]} Rxd7 {[%emt 0:00:01]} 29. Rf4 {[%emt 0:02:52]
} Rd1+ {[%emt 0:00:52]} 30. Kh2 {[%emt 0:00:28]} Bxa2 {[%emt 0:00:27]} 31. Rd4
{[%emt 0:00:57]} Rxd4 {[%emt 0:01:30]} 32. cxd4 {[%emt 0:00:01]} g6 {[%emt 0:
00:00]} 33. Kg2 {[%emt 0:00:22]} Bd5+ {[%emt 0:01:15]} 34. f3 {[%emt 0:00:33]}
Ke7 {[%emt 0:00:08]} 35. Kf2 {[%emt 0:00:22]} b5 {[%emt 0:01:09]} 36. Ke3 {
[%emt 0:01:29]} a5 {[%emt 0:00:12]} 37. Ne2 {[%emt 0:00:38]} Bc4 {[%emt 0:00:
00]} 38. Nc3 {[%emt 0:00:22]} b4 {[%emt 0:00:45]} 39. axb4 {[%emt 0:00:05]}
axb4 {[%emt 0:00:02]} 40. Nd1 {[%emt 0:00:35]} Ke6 {[%emt 0:00:24]} 41. Ke4 {
[%emt 0:13:46]} Bd5+ {[%emt 0:03:39]} 42. Ke3 {[%emt 0:01:50]} g5 {[%emt 0:00:
00]} 43. f4 {[%emt 0:02:12]} Bg2 {[%emt 0:01:21]} 44. fxg5 {[%emt 0:00:26]}
hxg5 {[%emt 0:00:06]} 45. Kd3 {[%emt 0:00:27]} Bf1+ {[%emt 0:06:52]} 46. Kc2 {
[%emt 0:09:01]} Bxh3 {[%emt 0:01:58]} 47. Ne3 {[%emt 0:00:03]} f5 {[%emt 0:00:
00]} 48. gxf5+ {[%emt 0:00:14]} Bxf5+ {[%emt 0:00:05]} 49. Kb3 {[%emt 0:00:05]}
g4 {[%emt 0:01:26]} 50. Nxg4 {[%emt 0:00:06]} 1/2-1/2

[Event "44th Chess Olympiad Women 2022"]
[Site "Chennai"]
[Date "2022.08.07"]
[Round "9.26"]
[White "Petricenco, Ana"]
[Black "Rodriguez Rueda, Paula Andrea"]
[Result "1-0"]
[WhiteElo "1912"]
[BlackElo "2237"]
[Annotator "RC"]
[PlyCount "65"]
[EventDate "2022.??.??"]
[TimeControl "60"]

1. e4 {[%emt 0:00:03]} c5 {[%emt 0:00:06]} 2. Nf3 {[%emt 0:00:09]} d6 {[%emt 0:
00:00]} 3. Bb5+ {[%emt 0:00:08]} Nd7 {[%emt 0:00:21]} 4. c3 {[%emt 0:01:29]}
Ngf6 {[%emt 0:00:26]} 5. Qe2 {[%emt 0:00:14]} a6 {[%emt 0:00:39]} 6. Ba4 {
[%emt 0:00:05]} b5 {[%emt 0:00:08]} 7. Bc2 {[%emt 0:00:05]} Bb7 {[%emt 0:00:10]
} 8. O-O {[%emt 0:00:39]} e5 {[%emt 0:01:29]} 9. d4 {[%emt 0:02:59]} Be7 {
[%emt 0:00:13]} 10. d5 {[%emt 0:03:51]} O-O {[%emt 0:02:34]} 11. b3 {[%emt 0:
00:00]} c4 {[%emt 0:11:10]} 12. bxc4 {[%emt 0:15:06]} Nc5 {[%emt 0:02:14]} 13.
Na3 {[%emt 0:09:05]} Qa5 {[%emt 0:01:46]} 14. Bb2 {[%emt 0:11:43]} Na4 {
[%emt 0:11:30]} 15. Bxa4 {[%emt 0:00:52]} Qxa4 {[%emt 0:03:39]} 16. Rfe1 {
[%emt 0:03:39]} bxc4 {[%emt 0:08:02]} 17. Nxc4 {[%emt 0:03:34]} Rab8 {[%emt 0:
00:00]} 18. Ba3 {[%emt 0:03:50]} Rbc8 {[%emt 0:31:57]} 19. Bxd6 {[%emt 0:11:16]
} Rxc4 {[%emt 0:00:20]} 20. Bxe7 {[%emt 0:00:17]} Rxe4 {[%emt 0:04:05]} 21. Qb2
{[%emt 0:02:03]} Bxd5 {[%emt 0:04:47]} 22. Rxe4 {[%emt 0:02:30]} Bxe4 {[%emt 0:
00:00]} 23. Bxf8 {[%emt 0:00:08]} Bxf3 {[%emt 0:01:34]} 24. gxf3 {[%emt 0:00:
00]} Kxf8 {[%emt 0:01:03]} 25. Qb8+ {[%emt 0:00:31]} Ne8 {[%emt 0:01:23]} 26.
Qxe5 {[%emt 0:01:29]} f6 {[%emt 0:00:31]} 27. Qc5+ {[%emt 0:01:01]} Kf7 {
[%emt 0:00:08]} 28. Re1 {[%emt 0:00:45]} Qd7 {[%emt 0:01:11]} 29. Qc4+ {
[%emt 0:00:28]} Kg6 {[%emt 0:00:28]} 30. Qg4+ {[%emt 0:01:18]} Qxg4+ {[%emt 0:
00:00]} 31. fxg4 {[%emt 0:00:05]} Nc7 {[%emt 0:00:27]} 32. Re7 {[%emt 0:01:48]}
Nd5 {[%emt 0:00:04]} 33. Ra7 {[%emt 0:00:07]} 1-0

[Event "44th Chess Olympiad Women 2022"]
[Site "Chennai"]
[Date "2022.08.07"]
[Round "9.27"]
[White "Monroy G., Nataly A."]
[Black "Nguyen, Thu Giang"]
[Result "0-1"]
[WhiteElo "1907"]
[BlackElo "2119"]
[Annotator "NA"]
[PlyCount "70"]
[EventDate "2022.??.??"]
[TimeControl "60"]

1. d4 {[%emt 0:00:03]} Nf6 {[%emt 0:00:20]} 2. Nf3 {[%emt 0:00:25]} e6 {
[%emt 0:01:32]} 3. c4 {[%emt 0:00:59]} d5 {[%emt 0:02:50]} 4. cxd5 {[%emt 0:00:
00]} exd5 {[%emt 0:03:59]} 5. Nc3 {[%emt 0:01:41]} c6 {[%emt 0:06:08]} 6. Bg5 {
[%emt 0:03:45]} Be7 {[%emt 0:02:58]} 7. e3 {[%emt 0:01:30]} Nbd7 {[%emt 0:00:
00]} 8. Bd3 {[%emt 0:02:34]} Nf8 {[%emt 0:02:04]} 9. h3 {[%emt 0:03:16]} Ne6 {
[%emt 0:03:45]} 10. Bh4 {[%emt 0:06:01]} b6 {[%emt 0:02:35]} 11. O-O {[%emt 0:
00:00]} Bb7 {[%emt 0:03:29]} 12. Rc1 {[%emt 0:14:30]} O-O {[%emt 0:03:05]} 13.
Qc2 {[%emt 0:09:42]} h6 {[%emt 0:05:59]} 14. a3 {[%emt 0:06:19]} c5 {[%emt 0:
00:00]} 15. dxc5 {[%emt 0:04:14]} bxc5 {[%emt 0:03:21]} 16. Rfd1 {[%emt 0:00:
00]} d4 {[%emt 0:12:16]} 17. exd4 {[%emt 0:02:05]} Bxf3 {[%emt 0:01:13]} 18.
gxf3 {[%emt 0:01:33]} Nxd4 {[%emt 0:00:26]} 19. Qa4 {[%emt 0:00:06]} Nd7 {
[%emt 0:08:15]} 20. Bg3 {[%emt 0:03:44]} Nb6 {[%emt 0:02:49]} 21. Qa6 {[%emt 0:
00:00]} f5 {[%emt 0:03:22]} 22. Bc4+ {[%emt 0:03:47]} Kh8 {[%emt 0:00:32]} 23.
Ne2 {[%emt 0:00:07]} Nxf3+ {[%emt 0:02:30]} 24. Kg2 {[%emt 0:00:13]} Nd4 {
[%emt 0:00:15]} 25. Nf4 {[%emt 0:00:40]} Rf6 {[%emt 0:03:29]} 26. b4 {[%emt 0:
00:00]} Nd5 {[%emt 0:04:31]} 27. Qb7 {[%emt 0:04:00]} Nxf4+ {[%emt 0:01:19]}
28. Bxf4 {[%emt 0:00:03]} Rg6+ {[%emt 0:00:54]} 29. Kf1 {[%emt 0:00:25]} Rc8 {
[%emt 0:02:29]} 30. Qxa7 {[%emt 0:02:09]} Bg5 {[%emt 0:01:12]} 31. Qf7 {
[%emt 0:01:56]} Kh7 {[%emt 0:01:45]} 32. Be3 {[%emt 0:01:33]} Bxe3 {[%emt 0:00:
00]} 33. fxe3 {[%emt 0:00:05]} Qh4 {[%emt 0:00:59]} 34. Bd5 {[%emt 0:08:37]}
Qxh3+ {[%emt 0:00:26]} 35. Ke1 {[%emt 0:00:02]} Qxe3+ {[%emt 0:00:09]} 0-1

[Event "44th Chess Olympiad Women 2022"]
[Site "Chennai"]
[Date "2022.08.07"]
[Round "9.27"]
[White "Ramirez, Maria Eugenia"]
[Black "Zhang, Jilin"]
[Result "0-1"]
[WhiteElo "2005"]
[BlackElo "2212"]
[Annotator "RC"]
[PlyCount "124"]
[EventDate "2022.??.??"]
[TimeControl "60"]

1. e4 {[%emt 0:00:02]} c5 {[%emt 0:00:09]} 2. Na3 {[%emt 0:00:04]} g6 {[%emt 0:
00:00]} 3. c3 {[%emt 0:04:30]} Bg7 {[%emt 0:00:13]} 4. Nf3 {[%emt 0:00:33]} Nc6
{[%emt 0:01:17]} 5. Bb5 {[%emt 0:03:06]} Nf6 {[%emt 0:05:01]} 6. Qe2 {[%emt 0:
00:00]} O-O {[%emt 0:02:14]} 7. O-O {[%emt 0:00:08]} d5 {[%emt 0:04:33]} 8. e5
{[%emt 0:04:49]} Ng4 {[%emt 0:01:03]} 9. Bxc6 {[%emt 0:02:50]} bxc6 {[%emt 0:
00:00]} 10. h3 {[%emt 0:05:38]} Nh6 {[%emt 0:00:07]} 11. Rd1 {[%emt 0:00:19]}
f6 {[%emt 0:07:34]} 12. d4 {[%emt 0:05:12]} cxd4 {[%emt 0:10:27]} 13. cxd4 {
[%emt 0:08:19]} fxe5 {[%emt 0:01:31]} 14. Nxe5 {[%emt 0:00:50]} Qb6 {[%emt 0:
00:00]} 15. Qc2 {[%emt 0:11:35]} Nf5 {[%emt 0:12:44]} 16. Qxc6 {[%emt 0:26:04]}
Qxc6 {[%emt 0:07:48]} 17. Nxc6 {[%emt 0:00:08]} Bb7 {[%emt 0:00:12]} 18. Na5 {
[%emt 0:00:33]} Ba6 {[%emt 0:01:14]} 19. Be3 {[%emt 0:06:55]} Rac8 {[%emt 0:00:
00]} 20. Nb3 {[%emt 0:02:52]} Bc4 {[%emt 0:13:02]} 21. Nd2 {[%emt 0:03:25]} Be2
{[%emt 0:04:28]} 22. Re1 {[%emt 0:01:50]} Nxd4 {[%emt 0:00:43]} 23. Bxd4 {
[%emt 0:06:03]} Bxd4 {[%emt 0:00:05]} 24. Rxe2 {[%emt 0:00:05]} Bxb2 {[%emt 0:
00:00]} 25. Rd1 {[%emt 0:00:04]} Bxa3 {[%emt 0:00:16]} 26. Nf3 {[%emt 0:00:11]}
Rfd8 {[%emt 0:04:28]} 27. Nd4 {[%emt 0:04:00]} Rd7 {[%emt 0:02:28]} 28. Kf1 {
[%emt 0:00:16]} Rc1 {[%emt 0:02:03]} 29. Rxc1 {[%emt 0:01:08]} Bxc1 {[%emt 0:
00:00]} 30. Rc2 {[%emt 0:01:00]} Bf4 {[%emt 0:01:10]} 31. g3 {[%emt 0:00:14]}
Be5 {[%emt 0:02:23]} 32. Nb3 {[%emt 0:01:12]} Kf7 {[%emt 0:01:16]} 33. Rd2 {
[%emt 0:00:19]} e6 {[%emt 0:01:32]} 34. Ke2 {[%emt 0:00:32]} Rc7 {[%emt 0:00:
00]} 35. Kd3 {[%emt 0:00:45]} Rc3+ {[%emt 0:00:43]} 36. Ke2 {[%emt 0:00:03]}
Bf6 {[%emt 0:00:55]} 37. Kd1 {[%emt 0:00:07]} Bd8 {[%emt 0:01:51]} 38. Re2 {
[%emt 0:00:20]} Bb6 {[%emt 0:00:23]} 39. Ke1 {[%emt 0:00:43]} g5 {[%emt 0:00:
00]} 40. Rb2 {[%emt 0:01:25]} h5 {[%emt 0:02:06]} 41. a4 {[%emt 0:04:46]} h4 {
[%emt 0:03:31]} 42. a5 {[%emt 0:19:04]} hxg3 {[%emt 0:02:57]} 43. fxg3 {
[%emt 0:03:15]} Bc7 {[%emt 0:00:36]} 44. Nd4 {[%emt 0:01:15]} Bxa5 {[%emt 0:00:
00]} 45. Kf1 {[%emt 0:03:31]} Bb6 {[%emt 0:02:36]} 46. Ne2 {[%emt 0:00:31]}
Rf3+ {[%emt 0:00:12]} 47. Ke1 {[%emt 0:00:55]} e5 {[%emt 0:03:32]} 48. h4 {
[%emt 0:00:39]} gxh4 {[%emt 0:00:13]} 49. gxh4 {[%emt 0:00:04]} Rh3 {[%emt 0:
00:00]} 50. Kf1 {[%emt 0:00:42]} Rxh4 {[%emt 0:00:44]} 51. Nc3 {[%emt 0:00:35]}
Ke6 {[%emt 0:00:32]} 52. Kg2 {[%emt 0:00:41]} Rg4+ {[%emt 0:01:32]} 53. Kh3 {
[%emt 0:00:27]} Rg8 {[%emt 0:00:57]} 54. Rb5 {[%emt 0:00:35]} d4 {[%emt 0:00:
00]} 55. Ne4 {[%emt 0:00:32]} d3 {[%emt 0:01:14]} 56. Rb3 {[%emt 0:00:24]} Rd8
{[%emt 0:00:19]} 57. Rb2 {[%emt 0:00:27]} Be3 {[%emt 0:01:17]} 58. Rb1 {
[%emt 0:00:31]} d2 {[%emt 0:02:08]} 59. Rd1 {[%emt 0:00:37]} Rd4 {[%emt 0:00:
00]} 60. Nc5+ {[%emt 0:00:28]} Kd5 {[%emt 0:00:12]} 61. Nb3 {[%emt 0:00:35]}
Rd3 {[%emt 0:00:13]} 62. Na1 {[%emt 0:00:27]} Bd4+ {[%emt 0:00:09]} 0-1

[Event "44th Chess Olympiad Women 2022"]
[Site "Chennai"]
[Date "2022.08.07"]
[Round "9.27"]
[White "Richards, Heather S"]
[Black "Molina, Jessica"]
[Result "1-0"]
[WhiteElo "2146"]
[BlackElo "1889"]
[Annotator "NA"]
[PlyCount "93"]
[EventDate "2022.??.??"]
[TimeControl "60"]

1. d4 {[%emt 0:00:02]} Nf6 {[%emt 0:00:16]} 2. Nc3 {[%emt 0:00:04]} d5 {
[%emt 0:00:14]} 3. Bf4 {[%emt 0:00:04]} e6 {[%emt 0:01:48]} 4. Nb5 {[%emt 0:00:
00]} Na6 {[%emt 0:02:21]} 5. e3 {[%emt 0:00:10]} c6 {[%emt 0:00:45]} 6. Nc3 {
[%emt 0:00:07]} Nb8 {[%emt 0:05:40]} 7. Nf3 {[%emt 0:12:23]} Be7 {[%emt 0:00:
00]} 8. Ne5 {[%emt 0:00:22]} Nbd7 {[%emt 0:01:31]} 9. Nd3 {[%emt 0:03:13]} b6 {
[%emt 0:00:29]} 10. g4 {[%emt 0:00:07]} h6 {[%emt 0:00:43]} 11. Qf3 {[%emt 0:
00:00]} Bb7 {[%emt 0:05:22]} 12. O-O-O {[%emt 0:05:38]} a5 {[%emt 0:02:46]} 13.
h4 {[%emt 0:00:12]} Ne4 {[%emt 0:09:11]} 14. Nxe4 {[%emt 0:03:12]} dxe4 {
[%emt 0:00:08]} 15. Qxe4 {[%emt 0:00:07]} Bxh4 {[%emt 0:00:38]} 16. Qg2 {
[%emt 0:05:15]} Bg5 {[%emt 0:06:26]} 17. Be2 {[%emt 0:05:54]} Bxf4 {[%emt 0:00:
00]} 18. Nxf4 {[%emt 0:00:06]} g5 {[%emt 0:09:58]} 19. Nd3 {[%emt 0:08:53]} Qc7
{[%emt 0:01:18]} 20. Bf3 {[%emt 0:13:37]} O-O-O {[%emt 0:12:16]} 21. Rh3 {
[%emt 0:06:41]} e5 {[%emt 0:05:30]} 22. Qh2 {[%emt 0:05:08]} exd4 {[%emt 0:00:
00]} 23. Qxc7+ {[%emt 0:00:13]} Kxc7 {[%emt 0:00:02]} 24. exd4 {[%emt 0:00:06]}
c5 {[%emt 0:04:11]} 25. dxc5 {[%emt 0:01:49]} bxc5 {[%emt 0:08:37]} 26. Bxb7 {
[%emt 0:01:40]} Kxb7 {[%emt 0:00:46]} 27. c4 {[%emt 0:01:36]} Kc7 {[%emt 0:00:
00]} 28. Rf3 {[%emt 0:01:33]} f6 {[%emt 0:01:59]} 29. Rf5 {[%emt 0:00:40]} Kc6
{[%emt 0:01:23]} 30. b3 {[%emt 0:00:47]} Rhe8 {[%emt 0:02:39]} 31. Rd5 {
[%emt 0:00:31]} Ra8 {[%emt 0:00:52]} 32. Nb2 {[%emt 0:01:15]} Re7 {[%emt 0:00:
00]} 33. Na4 {[%emt 0:00:48]} Rh8 {[%emt 0:00:30]} 34. Rd6+ {[%emt 0:01:47]}
Kc7 {[%emt 0:00:25]} 35. Ra6 {[%emt 0:06:25]} h5 {[%emt 0:00:46]} 36. Ra7+ {
[%emt 0:00:26]} Kc6 {[%emt 0:01:39]} 37. Nc3 {[%emt 0:03:04]} hxg4 {[%emt 0:00:
00]} 38. Nb5 {[%emt 0:00:21]} Re6 {[%emt 0:01:06]} 39. Raxd7 {[%emt 0:01:15]}
Rhe8 {[%emt 0:00:32]} 40. Nc7 {[%emt 0:00:31]} R8e7 {[%emt 0:00:33]} 41. Nxe6 {
[%emt 0:31:43]} Rxe6 {[%emt 0:30:13]} 42. R7d5 {[%emt 0:00:54]} a4 {[%emt 0:00:
00]} 43. bxa4 {[%emt 0:00:14]} Re4 {[%emt 0:00:44]} 44. Rd6+ {[%emt 0:00:05]}
Kb7 {[%emt 0:00:23]} 45. Rxf6 {[%emt 0:00:07]} Rxc4+ {[%emt 0:00:19]} 46. Kb2 {
[%emt 0:00:04]} Rxa4 {[%emt 0:00:55]} 47. Rd7+ {[%emt 0:00:06]} 1-0